fUSD/lending_fUSD_20241219
["ID","MTS","AMOUNT","RATE_DAILY","PERIOD"]
[345972980,1734576655097,-500.0,0.00023834,4]
[345972981,1734576655106,-500.0,0.00023834,4]
[345972982,1734576655116,-500.0,0.00023834,4]
[345972983,1734576655126,-500.0,0.00023834,4]
[345972984,1734576655135,-500.0,0.00023834,4]
[345972985,1734576655145,-500.0,0.00023834,4]
[345972986,1734576655155,-469.70189821,0.00023834,4]
[345972987,1734576655167,-50.81810179,0.00023834,4]
[345972988,1734576655177,-500.0,0.00023834,4]
[345972989,1734576655185,-500.0,0.00023834,4]
[345972990,1734576655195,-567.23,0.00023834,4]
[345972991,1734576655206,-371.80122449,0.00023834,4]
[345972992,1734576655230,-128.19877551,0.00023834,4]
[345972993,1734576655240,-500.0,0.00023834,4]
[345972994,1734576655249,-500.0,0.00023834,4]
[345972995,1734576655259,-638.02,0.00023834,4]
[345972996,1734576655269,-500.0,0.00023834,4]
[345972997,1734576655279,-223.27474979,0.00023834,4]
[345972998,1734576655291,-276.72525021,0.00023834,4]
[345972999,1734576655302,-204.0,0.0002385,2]
[345973000,1734576655312,-792.24910197,0.00023851,5]
[345973001,1734576655321,-150.0,0.00023851,4]
[345973002,1734576655331,-150.0,0.00023857,4]
[345973003,1734576655341,-155.22649181,0.00023863,2]
[345973004,1734576655351,-792.24910197,0.00023875,5]
[345973005,1734576655361,-298.28,0.00023881,2]
[345973006,1734576655370,-792.24910197,0.00023881,5]
[345973007,1734576655380,-212.53270948,0.0002389,2]
[345973008,1734576655389,-150.0,0.00023891,4]
[345973009,1734576655399,-3139.6485018,0.00023894,2]
[345973010,1734576655409,-150.0,0.00023897,4]
[345973011,1734576655418,-792.24910197,0.00023898,5]
[345973012,1734576655429,-700.0,0.000239,8]
[345973013,1734576655438,-490.46,0.00023906,4]
[345973014,1734576655448,-500.0,0.00023906,4]
[345973015,1734576655458,-500.0,0.00023906,4]
[345973016,1734576655468,-500.0,0.00023906,4]
[345973017,1734576655478,-869.01,0.00023906,4]
[345973018,1734576655487,-1158.61,0.00023906,4]
[345973019,1734576655496,-647.06,0.00023906,4]
[345973020,1734576655506,-500.0,0.00023906,4]
[345973021,1734576655516,-500.0,0.00023906,4]
[345973022,1734576655525,-556.45,0.00023906,4]
[345973023,1734576655535,-1467.81,0.00023906,4]
[345973024,1734576655545,-500.0,0.00023906,4]
[345973025,1734576655555,-500.0,0.00023906,4]
[345973026,1734576655565,-500.0,0.00023906,4]
[345973027,1734576655575,-500.0,0.00023906,4]
[345973028,1734576655584,-500.0,0.00023906,4]
[345973029,1734576655594,-500.0,0.00023906,4]
[345973030,1734576655603,-566.16,0.00023906,4]
[345973031,1734576655613,-502.08,0.00023906,4]
[345973032,1734576655622,-787.42,0.00023906,4]
[345973033,1734576655632,-634.01,0.00023906,4]
[345973034,1734576655641,-500.0,0.00023906,4]
[345973035,1734576655651,-998.74,0.00023907,4]
[345973036,1734576655660,-500.0,0.00023907,4]
[345973037,1734576655670,-500.0,0.00023907,4]
[345973038,1734576655680,-583.23,0.00023907,4]
[345973039,1734576655690,-500.0,0.00023907,4]
[345973040,1734576655699,-783.29,0.00023907,4]
[345973041,1734576655709,-500.0,0.00023907,4]
[345973042,1734576655719,-580.22,0.00023907,4]
[345973043,1734576655729,-659.87,0.00023907,4]
[345973044,1734576655738,-500.0,0.00023907,4]
[345973045,1734576655748,-721.9,0.00023907,4]
[345973046,1734576655758,-1363.63,0.00023907,4]
[345973047,1734576655771,-500.0,0.00023907,4]
[345973048,1734576655782,-500.0,0.00023907,4]
[345973049,1734576655793,-500.0,0.00023907,4]
[345973050,1734576655804,-2127.52,0.00023907,4]
[345973051,1734576655814,-500.0,0.00023907,4]
[345973052,1734576655824,-500.0,0.00023907,4]
[345973053,1734576655833,-500.0,0.00023907,4]
[345973054,1734576655844,-500.0,0.00023907,4]
[345973055,1734576655854,-150.0,0.00023925,4]
[345973056,1734576655864,-1067.72668893,0.00023935,2]
[345973057,1734576655874,-150.0,0.00023959,4]
[345973058,1734576655885,-150.0,0.00023961,4]
[345973059,1734576655894,-500.0,0.00023962,7]
[345973060,1734576655905,-150.0,0.00023964,4]
[345973061,1734576655914,-167.19,0.00023969,2]
[345973062,1734576655924,-155.22649181,0.00023973,2]
[345973063,1734576655934,-153.0,0.00023985,2]
[345973064,1734576655943,-153.0,0.00023985,2]
[345973065,1734576655953,-153.0,0.00023985,2]
[345973066,1734576655962,-153.0,0.00023985,2]
[345973067,1734576655972,-153.0,0.00023985,2]
[345973068,1734576655982,-153.0,0.00023985,2]
[345973069,1734576655992,-153.0,0.00023985,2]
[345973070,1734576656001,-153.0,0.00023985,2]
[345973071,1734576656011,-21908.0,0.0002399,2]
[345973072,1734576656021,-20000.0,0.0002399,3]
[345973073,1734576656030,-20000.0,0.0002399,4]
[345973074,1734576656040,-20000.0,0.0002399,5]
[345973075,1734576656051,-20000.0,0.0002399,6]
[345973076,1734576656061,-150.0,0.00023994,4]
[345973077,1734576656071,-800.0,0.00024,2]
[345973078,1734576656080,-800.0,0.00024,2]
[345973079,1734576656091,-1000.0,0.00024,2]
[345973080,1734576656101,-465.24378934,0.00024,2]
[345973081,1734576656111,-161.96837996,0.00024007,2]
[345973082,1734576656122,-150.0,0.00024025,4]
[345973083,1734576656132,-150.0,0.00024028,4]
[345973084,1734576656142,-934.47,0.00024055,2]
[345973085,1734576656152,-150.0,0.00024062,4]
[345973086,1734576656163,-235.51,0.00024062,2]
[345973087,1734576656173,-150.0,0.00024078,4]
[345973088,1734576656183,-155.22649181,0.00024082,2]
[345973089,1734576656193,-150.0,0.00024089,4]
[345973090,1734576656203,-150.0,0.00024096,4]
[345973091,1734576656213,-429.74,0.000241,2]
[345973092,1734576656223,-2124.0,0.000241,3]
[345973093,1734576656232,-1000.0,0.000241,8]
[345973094,1734576656242,-500.0,0.00024106,4]
[345973095,1734576656252,-500.0,0.00024106,4]
[345973096,1734576656262,-500.0,0.00024106,4]
[345973097,1734576656271,-500.0,0.00024106,4]
[345973098,1734576656281,-500.0,0.00024106,4]
[345973099,1734576656292,-500.0,0.00024106,4]
[345973100,1734576656303,-500.0,0.00024106,4]
[345973101,1734576656312,-857.04,0.00024106,4]
[345973102,1734576656322,-500.0,0.00024106,4]
[345973103,1734576656332,-500.0,0.00024106,4]
[345973104,1734576656342,-500.0,0.00024106,4]
[345973105,1734576656352,-500.0,0.00024106,4]
[345973106,1734576656362,-500.0,0.00024106,4]
[345973107,1734576656372,-500.0,0.00024106,4]
[345973108,1734576656381,-573.04,0.00024106,4]
[345973109,1734576656391,-539.13,0.00024106,4]
[345973110,1734576656401,-500.0,0.00024106,4]
[345973111,1734576656410,-500.0,0.00024106,4]
[345973112,1734576656420,-500.0,0.00024106,4]
[345973113,1734576656431,-669.36,0.00024106,4]
[345973114,1734576656440,-500.0,0.00024106,4]
[345973115,1734576656450,-501.61,0.00024106,4]
[345973116,1734576656460,-679.02,0.00024106,4]
[345973117,1734576656470,-500.0,0.00024106,4]
[345973118,1734576656480,-500.0,0.00024106,4]
[345973119,1734576656490,-500.0,0.00024106,4]
[345973120,1734576656499,-500.0,0.00024106,4]
[345973121,1734576656509,-500.0,0.00024106,4]
[345973122,1734576656519,-500.0,0.00024106,4]
[345973123,1734576656530,-500.0,0.00024106,4]
[345973124,1734576656541,-586.74,0.00024106,4]
[345973125,1734576656552,-500.0,0.00024106,4]
[345973126,1734576656562,-500.0,0.00024106,4]
[345973127,1734576656574,-500.0,0.00024106,4]
[345973128,1734576656584,-500.0,0.00024106,4]
[345973129,1734576656594,-500.0,0.00024106,4]
[345973130,1734576656604,-875.86,0.00024106,4]
[345973131,1734576656614,-922.69,0.00024106,4]
[345973132,1734576656624,-500.0,0.00024106,4]
[345973133,1734576656634,-500.0,0.00024106,4]
[345973134,1734576656644,-1352.82,0.00024106,4]
[345973135,1734576656654,-1139.31,0.00024106,4]
[345973136,1734576656664,-500.0,0.00024106,4]
[345973137,1734576656674,-500.0,0.00024106,4]
[345973138,1734576656683,-500.0,0.00024106,4]
[345973139,1734576656693,-678.33,0.00024106,2]
[345973140,1734576656704,-787.31,0.00024106,4]
[345973141,1734576656713,-500.0,0.00024106,4]
[345973142,1734576656725,-500.0,0.00024106,4]
[345973143,1734576656735,-500.0,0.00024106,4]
[345973144,1734576656745,-500.0,0.00024106,4]
[345973145,1734576656756,-542.48,0.00024106,4]
[345973146,1734576656769,-350.49528598,0.00024106,4]
[345973147,1734576656780,-891.63,0.00024106,4]
[345973148,1734576656791,-500.0,0.00024106,4]
[345973149,1734576656805,-500.0,0.00024106,4]
[345973150,1734576656817,-690.43,0.00024106,4]
[345973151,1734576656827,-783.72,0.00024106,4]
[345973152,1734576656837,-500.0,0.00024106,4]
[345973153,1734576656848,-500.0,0.00024106,4]
[345973154,1734576656860,-500.0,0.00024106,4]
[345973155,1734576656871,-928.28,0.00024106,4]
[345973156,1734576656881,-544.43,0.00024107,4]
[345973157,1734576656892,-500.0,0.00024107,4]
[345973158,1734576656903,-773.57,0.00024107,4]
[345973159,1734576656913,-994.3,0.00024107,4]
[345973160,1734576656923,-1113.53,0.00024107,4]
[345973161,1734576656934,-1895.11,0.00024107,4]
[345973162,1734576656944,-516.0,0.00024107,4]
[345973163,1734576656954,-500.0,0.00024107,4]
[345973164,1734576656965,-500.0,0.00024107,4]
[345973165,1734576656975,-920.49,0.00024107,4]
[345973166,1734576656984,-3590.44,0.00024107,4]
[345973167,1734576656994,-514.5,0.00024107,4]
[345973168,1734576657005,-953.28,0.00024107,4]
[345973169,1734576657016,-500.0,0.00024107,4]
[345973170,1734576657221,-500.0,0.00024107,4]
[345973171,1734576657232,-1000.0,0.00024107,4]
[345973172,1734576657243,-500.0,0.00024107,4]
[345973173,1734576657253,-793.66,0.00024107,4]
[345973174,1734576657264,-1454.24,0.00024107,4]
[345973175,1734576657274,-500.0,0.00024107,4]
[345973176,1734576657284,-500.0,0.00024108,4]
[345973177,1734576657295,-500.0,0.00024108,4]
[345973178,1734576657308,-660.2,0.00024108,4]
[345973179,1734576657318,-573.08,0.00024108,4]
[345973180,1734576657328,-500.0,0.00024108,4]
[345973181,1734576657339,-500.0,0.00024108,4]
[345973182,1734576657349,-500.0,0.00024108,4]
[345973183,1734576657359,-500.0,0.00024108,4]
[345973184,1734576657369,-500.0,0.00024108,4]
[345973185,1734576657379,-500.0,0.00024108,7]
[345973186,1734576657389,-362.86135803,0.00024108,4]
[345973187,1734576657399,-500.0,0.00024108,4]
[345973188,1734576657411,-500.0,0.00024108,4]
[345973189,1734576657421,-525.49,0.00024108,4]
[345973190,1734576657432,-500.0,0.00024108,4]
[345973191,1734576657442,-500.0,0.00024108,4]
[345973192,1734576657452,-500.0,0.00024108,4]
[345973193,1734576657462,-500.0,0.00024108,4]
[345973194,1734576657472,-500.0,0.00024108,4]
[345973195,1734576657483,-500.0,0.00024108,4]
[345973196,1734576657493,-500.0,0.00024108,4]
[345973197,1734576657503,-500.0,0.00024108,4]
[345973198,1734576657516,-500.0,0.00024108,4]
[345973199,1734576657530,-500.0,0.00024108,4]
[345973200,1734576657545,-520.52,0.00024108,4]
[345973201,1734576657565,-500.0,0.00024108,4]
[345973202,1734576657586,-500.0,0.00024108,4]
[345973203,1734576657609,-567.23,0.00024108,4]
[345973204,1734576657630,-500.0,0.00024108,4]
[345973205,1734576657651,-500.0,0.00024108,4]
[345973206,1734576657673,-500.0,0.00024108,4]
[345973207,1734576657696,-638.02,0.00024108,4]
[345973208,1734576657719,-500.0,0.00024108,4]
[345973209,1734576657743,-500.0,0.00024108,4]
[345973210,1734576657767,-150.0,0.00024131,4]
[345973211,1734576657789,-3139.6485018,0.00024145,2]
[345973212,1734576657811,-150.0,0.00024153,4]
[345973213,1734576657836,-150.0,0.00024165,4]
[345973214,1734576657859,-621.72295952,0.0002418,4]
[345973215,1734576657881,-490.25720828,0.0002418,4]
[345973216,1734576657904,-500.0,0.0002418,4]
[345973217,1734576657927,-869.01,0.0002418,4]
[345973218,1734576657950,-1158.61,0.0002418,4]
[345973219,1734576657974,-647.06,0.0002418,4]
[345973220,1734576657996,-500.0,0.0002418,4]
[345973221,1734576658020,-500.0,0.0002418,4]
[345973222,1734576658044,-556.45,0.0002418,4]
[345973223,1734576658068,-1467.81,0.0002418,4]
[345973224,1734576658092,-500.0,0.0002418,4]
[345973225,1734576658116,-500.0,0.0002418,4]
[345973226,1734576658138,-500.0,0.0002418,4]
[345973227,1734576658162,-564.20905506,0.0002418,4]
[345973228,1734576658185,-500.0,0.0002418,4]
[345973229,1734576658208,-160.88453525,0.0002418,4]
[345973230,1734576658233,-566.16,0.0002418,4]
[345973231,1734576658256,-502.08,0.0002418,4]
[345973232,1734576658280,-787.42,0.0002418,4]
[345973233,1734576658303,-634.01,0.0002418,4]
[345973234,1734576658327,-500.0,0.0002418,4]
[345973235,1734576658350,-998.74,0.00024181,4]
[345973236,1734576658375,-573.67214711,0.00024181,4]
[345973237,1734576658398,-500.0,0.00024181,4]
[345973238,1734576658413,-583.23,0.00024181,4]
[345973239,1734576658425,-500.0,0.00024181,4]
[345973240,1734576658436,-783.29,0.00024181,4]
[345973241,1734576658446,-500.0,0.00024181,4]
[345973242,1734576658456,-580.22,0.00024181,4]
[345973243,1734576658467,-659.87,0.00024181,4]
[345973244,1734576658478,-500.0,0.00024181,4]
[345973245,1734576658488,-721.9,0.00024181,4]
[345973246,1734576658499,-1363.63,0.00024181,4]
[345973247,1734576658509,-500.0,0.00024181,4]
[345973248,1734576658519,-500.0,0.00024181,4]
[345973249,1734576658529,-500.0,0.00024181,4]
[345973250,1734576658540,-2127.52,0.00024181,4]
[345973251,1734576658550,-500.0,0.00024181,4]
[345973252,1734576658561,-500.0,0.00024181,4]
[345973253,1734576658571,-500.0,0.00024181,4]
[345973254,1734576658580,-500.0,0.00024181,4]
[345973255,1734576658590,-150.0,0.00024191,4]
[345973256,1734576658600,-155.22649181,0.00024192,2]
[345973257,1734576658610,-150.0,0.00024199,4]
[345973258,1734576658620,-1400.0,0.000242,8]
[345973259,1734576658630,-150.0,0.00024217,4]
[345973260,1734576658642,-204.0,0.0002423,2]
[345973261,1734576658654,-150.0,0.00024233,4]
[345973262,1734576658666,-500.0,0.00024235,7]
[345973263,1734576658679,-394.0,0.0002425,2]
[345973264,1734576658693,-150.0,0.00024268,4]
[345973265,1734576658704,-150.0,0.00024282,4]
[345973266,1734576658715,-263.31768128,0.0002429,7]
[345973267,1734576658725,-1700.0,0.000243,8]
[345973268,1734576658735,-155.22649181,0.00024301,2]
[345973269,1734576658747,-150.0,0.00024302,4]
[345973270,1734576658757,-150.0,0.00024305,4]
[345973271,1734576658769,-444.4875,0.00024323,2]
[345973272,1734576658783,-150.0,0.00024336,4]
[345973273,1734576658794,-150.0,0.00024346,4]
[345973274,1734576658808,-150.0,0.0002437,4]
[345973275,1734576658821,-500.0,0.0002438,4]
[345973276,1734576658831,-500.0,0.0002438,4]
[345973277,1734576658842,-500.0,0.0002438,4]
[345973278,1734576658852,-500.0,0.0002438,4]
[345973279,1734576658862,-500.0,0.0002438,4]
[345973280,1734576658872,-500.0,0.0002438,4]
[345973281,1734576658882,-336.9264934,0.0002438,4]
[345973282,1734576658891,-857.04,0.0002438,4]
[345973283,1734576658900,-500.0,0.0002438,4]
[345973284,1734576658909,-500.0,0.0002438,4]
[345973285,1734576658919,-500.0,0.0002438,4]
[345973286,1734576658929,-481.70720336,0.0002438,4]
[345973287,1734576658939,-500.0,0.0002438,4]
[345973288,1734576658949,-500.0,0.0002438,4]
[345973289,1734576658958,-573.04,0.0002438,4]
[345973290,1734576658968,-539.13,0.0002438,4]
[345973291,1734576658977,-500.0,0.0002438,4]
[345973292,1734576658987,-500.0,0.0002438,4]
[345973293,1734576658996,-500.0,0.0002438,4]
[345973294,1734576659005,-669.36,0.0002438,4]
[345973295,1734576659015,-294.19277223,0.0002438,4]
[345973296,1734576659024,-501.61,0.0002438,4]
[345973297,1734576659033,-679.02,0.0002438,4]
[345973298,1734576659043,-500.0,0.0002438,4]
[345973299,1734576659054,-500.0,0.0002438,4]
[345973300,1734576659064,-500.0,0.0002438,4]
[345973301,1734576659074,-500.0,0.0002438,4]
[345973302,1734576659084,-500.0,0.0002438,4]
[345973303,1734576659095,-500.0,0.0002438,4]
[345973304,1734576659105,-500.0,0.0002438,4]
[345973305,1734576659114,-586.74,0.0002438,4]
[345973306,1734576659123,-500.0,0.0002438,4]
[345973307,1734576659133,-500.0,0.0002438,4]
[345973308,1734576659142,-500.0,0.0002438,4]
[345973309,1734576659152,-500.0,0.0002438,4]
[345973310,1734576659162,-500.0,0.0002438,4]
[345973311,1734576659171,-875.86,0.0002438,4]
[345973312,1734576659181,-922.69,0.0002438,4]
[345973313,1734576659191,-500.0,0.0002438,4]
[345973314,1734576659201,-500.0,0.0002438,4]
[345973315,1734576659210,-1352.82,0.0002438,4]
[345973316,1734576659220,-1139.31,0.0002438,4]
[345973317,1734576659230,-500.0,0.0002438,4]
[345973318,1734576659240,-500.0,0.0002438,4]
[345973319,1734576659249,-500.0,0.0002438,4]
[345973320,1734576659259,-678.33,0.0002438,2]
[345973321,1734576659269,-787.31,0.0002438,4]
[345973322,1734576659278,-500.0,0.0002438,4]
[345973323,1734576659288,-500.0,0.0002438,4]
[345973324,1734576659297,-500.0,0.0002438,4]
[345973325,1734576659308,-500.0,0.0002438,4]
[345973326,1734576659317,-542.48,0.0002438,4]
[345973327,1734576659327,-891.63,0.0002438,4]
[345973328,1734576659336,-500.0,0.0002438,4]
[345973329,1734576659346,-500.0,0.0002438,4]
[345973330,1734576659356,-690.43,0.0002438,4]
[345973331,1734576659365,-783.72,0.0002438,4]
[345973332,1734576659374,-500.0,0.0002438,4]
[345973333,1734576659384,-500.0,0.0002438,4]
[345973334,1734576659394,-500.0,0.0002438,4]
[345973335,1734576659405,-928.28,0.0002438,4]
[345973336,1734576659414,-544.43,0.00024381,4]
[345973337,1734576659423,-500.0,0.00024381,4]
[345973338,1734576659432,-773.57,0.00024381,4]
[345973339,1734576659442,-994.3,0.00024381,4]
[345973340,1734576659451,-1113.53,0.00024381,4]
[345973341,1734576659461,-1895.11,0.00024381,4]
[345973342,1734576659470,-516.0,0.00024381,4]
[345973343,1734576659479,-500.0,0.00024381,4]
[345973344,1734576659488,-500.0,0.00024381,4]
[345973345,1734576659499,-920.49,0.00024381,4]
[345973346,1734576659509,-3590.44,0.00024381,4]
[345973347,1734576659519,-514.5,0.00024381,4]
[345973348,1734576659529,-953.28,0.00024381,4]
[345973349,1734576659539,-500.0,0.00024381,4]
[345973350,1734576659549,-261.3272664,0.00024381,4]
[345973351,1734576659560,-1000.0,0.00024381,4]
[345973352,1734576659570,-500.0,0.00024381,4]
[345973353,1734576659580,-793.66,0.00024381,4]
[345973354,1734576659590,-1454.24,0.00024381,4]
[345973355,1734576659600,-500.0,0.00024381,4]
[345973356,1734576659610,-432.61,0.00024382,4]
[345973357,1734576659619,-226.85754206,0.00024382,4]
[345973358,1734576659629,-660.2,0.00024382,4]
[345973359,1734576659638,-573.08,0.00024382,4]
[345973360,1734576659647,-500.0,0.00024382,4]
[345973361,1734576659656,-500.0,0.00024382,4]
[345973362,1734576659665,-52.10590135,0.00024382,4]
[345973363,1734576659836,-447.89409865,0.00024382,4]
[345973364,1734576659846,-297.89986855,0.00024382,4]
[345973365,1734576659859,-202.10013145,0.00024382,4]
[345973366,1734576659869,-500.0,0.00024382,4]
[345973367,1734576659879,-500.0,0.00024382,7]
[345973368,1734576659888,-500.0,0.00024382,4]
[345973369,1734576659898,-289.96868683,0.00024382,4]
[345973371,1734577408223,160.05,0.00010137,2]
[345973374,1734577603208,450.0,0.00013,2]
[345973380,1734577831702,-574.68,0.00019443,2]
[345973382,1734577831712,-20000.0,0.0002,2]
[345973384,1734577831722,-219.73584826,0.000209,2]
[345973386,1734577831731,-508.61,0.00021,2]
[345973388,1734577831741,-200.0,0.00021233,2]
[345973389,1734577831750,-1290.86,0.00021269,2]
[345973390,1734577831760,-200.0,0.00021273,2]
[345973391,1734577831769,-235.51,0.00021289,2]
[345973392,1734577831779,-180.99,0.00021299,2]
[345973393,1734577831788,-2751.0,0.00021326,2]
[345973394,1734577831798,-1000.0,0.00021326,2]
[345973395,1734577831809,-161.58,0.00021428,2]
[345973396,1734577831819,-250.0,0.00021463,2]
[345973397,1734577831829,-250.0,0.00021495,2]
[345973398,1734577831838,-250.0,0.00021606,2]
[345973399,1734577831848,-152.24,0.00021634,30]
[345973400,1734577831858,-609.65640879,0.00021678,2]
[345973401,1734577831868,-574.68,0.00021707,2]
[345973402,1734577831879,-23900.0,0.00021746,2]
[345973403,1734577831889,-250.0,0.00021778,2]
[345973404,1734577831898,-186.33,0.00021803,2]
[345973405,1734577831907,-221.98,0.00021831,2]
[345973406,1734577831916,-767.73,0.00021835,2]
[345973407,1734577831925,-814.45305597,0.00021988,2]
[345973408,1734577831935,-1000.0,0.00022077,2]
[345973409,1734577831945,-332.00521,0.00022088,7]
[345973410,1734577831954,-6691.0,0.00022088,2]
[345973411,1734577831963,-1500.0,0.00022243,2]
[345973412,1734577831973,-170.11,0.00022286,2]
[345973413,1734577831982,-332.00521,0.00022288,7]
[345973414,1734577831991,-814.45305597,0.00022436,2]
[345973415,1734577832000,-150.0,0.00022488,4]
[345973416,1734577832009,-150.0,0.00022488,4]
[345973417,1734577832018,-150.0,0.00022488,4]
[345973418,1734577832027,-332.00521,0.00022488,7]
[345973419,1734577832036,-500.0,0.00022536,4]
[345973420,1734577832045,-500.0,0.00022536,4]
[345973421,1734577832055,-500.0,0.00022536,4]
[345973422,1734577832066,-500.0,0.00022536,4]
[345973423,1734577832075,-500.0,0.00022536,4]
[345973424,1734577832085,-500.0,0.00022536,4]
[345973425,1734577832094,-500.0,0.00022536,4]
[345973426,1734577832103,-500.0,0.00022536,4]
[345973427,1734577832114,-398.38129283,0.00022536,4]
[345973428,1734577832123,-500.0,0.00022536,4]
[345973429,1734577832132,-500.0,0.00022536,4]
[345973430,1734577832145,-500.0,0.00022536,4]
[345973431,1734577832154,-500.0,0.00022536,4]
[345973432,1734577832164,-500.0,0.00022536,4]
[345973433,1734577832174,-463.72247217,0.00022536,4]
[345973434,1734577832183,-500.0,0.00022536,4]
[345973435,1734577832192,-500.0,0.00022536,2]
[345973436,1734577832201,-500.0,0.00022536,4]
[345973437,1734577832211,-500.0,0.00022536,4]
[345973438,1734577832220,-500.0,0.00022536,4]
[345973439,1734577832229,-500.0,0.00022536,4]
[345973440,1734577832238,-500.0,0.00022536,4]
[345973441,1734577832248,-500.0,0.00022536,4]
[345973442,1734577832257,-500.0,0.00022536,4]
[345973443,1734577832266,-500.0,0.00022536,4]
[345973444,1734577832276,-500.0,0.00022536,4]
[345973445,1734577832285,-500.0,0.00022536,4]
[345973446,1734577832294,-500.0,0.00022536,4]
[345973447,1734577832303,-500.0,0.00022536,4]
[345973448,1734577832314,-500.0,0.00022536,4]
[345973449,1734577832323,-500.0,0.00022536,4]
[345973450,1734577832333,-500.0,0.00022536,4]
[345973451,1734577832342,-500.0,0.00022536,4]
[345973452,1734577832351,-500.0,0.00022536,4]
[345973453,1734577832361,-500.0,0.00022536,4]
[345973454,1734577832370,-60.88067005,0.00022536,4]
[345973455,1734577832624,-439.11932995,0.00022536,4]
[345973456,1734577832636,-500.0,0.00022536,4]
[345973457,1734577832648,-500.0,0.00022536,4]
[345973458,1734577832660,-500.0,0.00022536,4]
[345973459,1734577832671,-478.27438868,0.00022536,4]
[345973460,1734577832684,-21.72561132,0.00022536,4]
[345973461,1734577832694,-500.0,0.00022536,4]
[345973462,1734577832705,-500.0,0.00022536,4]
[345973463,1734577832715,-500.0,0.00022536,4]
[345973464,1734577832725,-500.0,0.00022536,4]
[345973465,1734577832737,-502.85,0.00022536,4]
[345973466,1734577832748,-500.0,0.00022536,4]
[345973467,1734577832760,-500.0,0.00022536,4]
[345973468,1734577832771,-105.99573243,0.00022536,4]
[345973469,1734577832785,-394.00426757,0.00022536,4]
[345973470,1734577832796,-500.0,0.00022536,4]
[345973471,1734577832811,-500.0,0.00022536,4]
[345973472,1734577832822,-500.0,0.00022536,4]
[345973473,1734577832833,-530.11,0.00022536,4]
[345973474,1734577832844,-500.0,0.00022536,4]
[345973475,1734577832856,-527.8686706,0.00022536,4]
[345973476,1734577832868,-500.0,0.00022537,4]
[345973477,1734577832879,-500.0,0.00022537,4]
[345973478,1734577832891,-500.0,0.00022537,4]
[345973479,1734577832902,-500.0,0.00022537,4]
[345973480,1734577832914,-181.55682788,0.00022537,4]
[345973481,1734577832926,-511.13553812,0.00022537,4]
[345973482,1734577832937,-500.0,0.00022537,4]
[345973483,1734577832948,-452.44777517,0.00022537,4]
[345973484,1734577832959,-500.0,0.00022537,4]
[345973485,1734577832969,-500.0,0.00022537,4]
[345973486,1734577832981,-500.0,0.00022537,7]
[345973487,1734577832992,-500.0,0.00022537,4]
[345973488,1734577833002,-500.0,0.00022537,4]
[345973489,1734577833013,-500.0,0.00022537,4]
[345973490,1734577833025,-511.16802956,0.00022537,4]
[345973491,1734577833036,-503.08070134,0.00022537,4]